bitfinex-derivatives/quotes_ETHF0:USTF0_20250912
["timestamp","ask_amount","ask_price","bid_price","bid_amount"]
[1757719080186,1.3642,4694.0,4693.7,3.2078]
[1757719080593,0.6098,4693.9,4693.7,3.2078]
[1757719080993,1.3642,4694.0,4693.7,3.2078]
[1757719081191,0.6098,4693.9,4693.7,3.2078]
[1757719081993,1.3642,4694.0,4693.7,3.2078]
[1757719082694,0.6098,4693.9,4693.7,3.2078]
[1757719082997,0.242,4693.8,4692.7,3.2078]
[1757719083297,0.6098,4693.9,4692.7,3.2078]
[1757719083498,0.242,4693.8,4692.7,3.2078]
[1757719083695,0.6098,4693.7,4692.7,3.2078]
[1757719083900,0.246,4693.0,4692.7,3.2078]
[1757719084101,0.6098,4692.8,4692.7,3.2078]
[1757719084794,4.6098,4692.8,4692.7,3.2078]
[1757719084993,4.0,4692.8,4692.1,3.2078]
[1757719085198,0.6098,4692.8,4692.1,3.2078]
[1757719086096,0.242,4692.9,4692.1,3.2078]
[1757719086301,0.242,4692.9,4691.6,3.2078]
[1757719086492,0.6098,4692.8,4691.6,3.2078]
[1757719086696,0.242,4692.9,4691.6,3.2078]
[1757719086998,0.6098,4692.7,4692.1,3.2078]
[1757719087198,0.241,4692.8,4692.1,3.2078]
[1757719087199,0.8558,4692.5,4692.1,3.2078]
[1757719087399,0.6098,4692.4,4692.1,3.2078]
[1757719087593,0.8508,4692.3,4692.1,3.2078]
[1757719087796,0.6098,4692.2,4692.1,3.2078]
[1757719090502,30.7,4692.6,4692.2,0.6048]
[1757719090704,0.24,4692.5,4692.1,3.2078]
[1757719090903,0.24,4692.4,4692.1,3.2078]
[1757719091205,0.24,4692.4,4692.2,0.6048]
[1757719091700,0.24,4692.4,4692.1,3.2078]
[1757719091905,0.24,4692.4,4692.2,0.6048]
[1757719092101,0.24,4692.4,4692.1,3.2078]
[1757719092307,0.6098,4693.0,4692.1,3.2078]
[1757719092308,0.24,4692.3,4692.1,3.2078]
[1757719092599,0.6098,4692.2,4692.1,3.2078]
[1757719094309,0.6098,4692.2,4691.2,0.6048]
[1757719094310,0.6098,4691.9,4691.5,3.2078]
[1757719094513,0.246,4692.0,4691.5,3.2078]
[1757719095414,0.24,4691.9,4691.5,3.2078]
[1757719096015,0.6098,4692.4,4691.6,0.6048]
[1757719096213,0.8488,4692.3,4692.0,3.8126]
[1757719096417,0.6098,4692.3,4692.1,0.6048]
[1757719096618,0.239,4692.2,4692.1,0.6048]
[1757719097311,0.6098,4692.1,4691.5,3.2078]
[1757719099420,0.6098,4692.1,4691.5,3.8126]
[1757719099812,0.6098,4691.9,4691.5,3.2078]
[1757719100325,0.6098,4691.9,4691.6,0.6048]
[1757719100818,0.239,4691.8,4691.6,0.6048]
[1757719101020,0.239,4691.8,4691.5,3.2078]
[1757719101218,0.6098,4691.7,4691.5,3.2078]
[1757719101816,0.239,4691.8,4691.5,3.2078]
[1757719102023,0.6098,4691.7,4691.5,3.2078]
[1757719102217,0.239,4691.8,4691.5,3.2078]
[1757719102613,0.6098,4691.7,4691.5,3.2078]
[1757719102813,30.702,4691.7,4690.3,3.8126]
[1757719103019,3.2078,4691.3,4690.3,3.8126]
[1757719103222,0.6098,4691.2,4690.3,3.8126]
[1757719103422,0.246,4691.0,4690.3,3.8126]
[1757719104220,0.6098,4690.9,4690.3,3.8126]
[1757719105620,0.238,4690.8,4690.6,0.6048]
[1757719106029,3.8176,4691.8,4690.6,0.6048]
[1757719106325,0.238,4691.7,4691.0,0.6048]
[1757719106926,0.238,4691.6,4691.4,3.2078]
[1757719107122,0.238,4691.6,4691.5,0.7247]
[1757719107322,0.0559,4692.3,4691.5,0.7247]
[1757719107626,0.238,4692.2,4691.5,0.7247]
[1757719107928,0.238,4692.1,4691.5,0.7247]
[1757719110319,0.0559,4692.3,4691.5,0.7247]
[1757719110519,0.0559,4692.3,4691.9,3.8059]
[1757719110520,0.238,4692.0,4691.9,3.8059]
[1757719111321,0.8462,4692.0,4691.4,3.8059]
[1757719111521,1.0958,4692.0,4691.4,3.8059]
[1757719111829,0.0559,4692.3,4691.5,0.7247]
[1757719111830,0.238,4691.9,4691.5,0.7247]
[1757719112423,0.0559,4692.3,4691.5,0.7247]
[1757719112623,0.0559,4692.3,4692.1,0.5981]
[1757719112825,0.0559,4692.3,4692.2,0.5981]
[1757719113020,0.237,4692.3,4692.2,0.5981]
[1757719113420,0.67009482,4692.3,4692.2,0.5981]
[1757719113941,0.237,4692.3,4692.2,0.5981]
[1757719114132,0.67009134,4692.3,4692.2,0.5981]
[1757719115131,1.27829134,4692.3,4692.2,0.5981]
[1757719115327,0.6082,4692.2,4691.5,3.06080001]
[1757719115530,0.8578,4692.0,4691.2,0.5981]
[1757719115727,0.8578,4692.0,4691.0,3.2078]
[1757719115928,0.2496,4692.0,4691.0,3.2078]
[1757719116322,0.6082,4691.8,4691.0,3.2078]
[1757719116534,0.6082,4690.9,4690.5,0.7925468]
[1757719116727,3.2078,4690.6,4690.0,0.5981]
[1757719116922,3.2078,4690.1,4689.7,0.5981]
[1757719117228,0.6082,4689.9,4689.7,0.5981]
[1757719118232,0.6082,4689.9,4689.2,3.8059]
[1757719119134,0.237,4689.8,4689.2,3.8059]
[1757719119831,0.237,4689.7,4689.2,3.2078]
[1757719120036,0.237,4689.7,4689.2,3.8059]
[1757719120237,0.6082,4689.6,4689.3,0.5981]
[1757719120835,0.6082,4689.6,4689.2,3.2078]
[1757719121132,0.236,4689.5,4689.3,0.5981]
[1757719121534,0.236,4689.5,4689.2,3.2078]
[1757719122235,0.236,4689.7,4689.5,0.1266]
[1757719122432,0.236,4689.7,4689.6,0.5981]
[1757719126236,0.2310066,4689.7,4689.6,0.5981]
[1757719127030,0.2310066,4689.7,4689.6,1.4305]
[1757719128742,0.236,4689.7,4689.6,1.4305]
[1757719131544,0.8823,4689.7,4689.6,1.4305]
[1757719131735,1.3174,4689.7,4689.6,0.8324]
[1757719131938,1.7485,4689.7,4689.6,0.8324]
[1757719132539,1.7485,4689.7,4689.6,0.398]
[1757719134045,1.7485,4689.7,4689.3,0.4162]
[1757719134046,1.5125,4689.4,4689.3,0.4162]
[1757719135745,1.5125,4689.4,4688.8,0.5946]
[1757719137841,1.5125,4689.4,4689.3,0.8235]
[1757719138147,1.7465,4689.4,4689.3,0.8235]
[1757719138849,0.5946,4689.3,4688.7,3.2078]
[1757719139050,1.4148,4689.3,4689.2,0.4158]
[1757719141153,0.5946,4689.8,4689.2,0.8235]
[1757719141354,0.9929,4689.7,4689.6,1.4515]
[1757719141548,1.2259,4689.7,4689.6,1.4515]
[1757719142251,1.6478,4689.7,4689.6,0.8235]
[1757719142953,0.2396,4689.5,4689.2,3.2078]
[1757719143155,0.8202,4689.3,4689.2,3.6236]
[1757719143355,1.6478,4689.3,4689.2,3.6236]
[1757719143556,1.4148,4689.3,4689.2,4.6593]
[1757719143856,1.2259,4689.3,4689.2,4.6593]
[1757719144256,0.9929,4689.3,4689.2,4.6593]
[1757719144555,1.2259,4689.3,4689.2,4.6593]
[1757719145455,1.6478,4689.3,4688.6,3.2078]
[1757719145648,1.4148,4688.7,4688.6,3.6236]
[1757719145857,1.6478,4688.7,4688.6,3.6236]
[1757719146355,0.5946,4688.7,4688.6,0.8235]
[1757719146554,1.2259,4688.7,4688.6,0.8235]
[1757719146755,1.2259,4688.7,4688.6,1.4515]
[1757719148657,1.2259,4688.7,4688.6,0.8235]
[1757719149356,1.2249,4688.7,4688.6,0.8235]
[1757719150760,1.6468,4688.7,4688.6,0.8235]
[1757719157362,1.4148,4688.7,4688.6,0.8235]
[1757719157563,1.6458,4688.7,4688.6,0.8235]
[1757719157762,1.6458,4688.7,4688.6,1.4515]
[1757719157963,1.2239,4688.7,4688.6,1.4515]
[1757719159555,1.6458,4688.7,4688.6,1.4515]
[1757719161667,0.231,4688.7,4688.6,1.4515]
[1757719162162,0.0639,4689.0,4688.7,0.628]
[1757719162363,0.2939,4689.0,4688.9,1.4515]
[1757719162865,0.2939,4689.0,4688.9,1.66477]
[1757719163864,0.2939,4689.0,4688.9,1.4515]
[1757719164168,0.0639,4689.0,4688.9,1.4515]
[1757719164362,0.2939,4689.0,4688.9,1.4515]
[1757719166872,0.0639,4689.0,4688.9,1.4515]
[1757719167065,0.2939,4689.0,4688.9,1.4515]
[1757719168062,0.0639,4689.0,4688.9,1.4515]
[1757719168262,0.9056,4689.0,4688.9,1.4515]
[1757719168667,0.6756,4689.0,4688.9,1.4515]
[1757719169066,0.0639,4689.0,4688.9,1.4515]
[1757719171068,0.0639,4689.0,4688.9,5.4515]
[1757719171564,0.229,4689.4,4688.9,5.4515]
[1757719171770,2.62204065,4691.2,4689.9,1.3569]
[1757719171771,0.6117,4690.0,4689.9,1.3569]
[1757719172073,0.6117,4690.0,4689.9,4.5647]
[1757719173068,1.0331,4690.0,4689.9,4.5647]
[1757719175579,0.6117,4690.0,4689.9,4.5647]
[1757719175774,31.3307,4690.4,4690.3,0.7823]
[1757719176078,31.5597,4690.4,4690.3,1.3569]
[1757719176276,31.9811,4690.4,4690.3,1.3569]
[1757719176470,32.3788,4690.4,4690.3,0.7823]
[1757719177372,32.3788,4690.4,4690.3,1.3569]
[1757719177777,1.668,4690.0,4689.9,3.6038]
[1757719178374,1.896,4690.0,4689.9,3.9901]
[1757719179982,1.896,4690.0,4689.9,3.2078]
[1757719181981,1.0331,4689.5,4689.4,4.5647]
[1757719182181,1.2611,4689.5,4689.4,4.5647]
[1757719182972,1.4983,4689.5,4689.4,4.5647]
[1757719183175,1.896,4689.5,4689.4,3.9901]
[1757719184983,1.896,4689.5,4689.4,4.5647]
[1757719187378,0.228,4689.5,4689.4,4.5647]
[1757719187887,0.4094,4690.7,4690.6,1.3914]
[1757719188383,1.0259,4690.7,4690.6,1.3914]
[1757719189189,1.4239,4690.7,4690.6,0.8175]
[1757719189882,1.4239,4690.7,4690.3,3.7817]
[1757719189883,0.2521,4690.5,4690.3,3.2078]
[1757719190185,1.6519,4690.4,4690.3,3.2078]
[1757719190381,1.6519,4690.4,4690.3,3.62]
[1757719191181,1.6519,4690.4,4690.3,4.0253]
[1757719191989,1.0259,4690.4,4690.3,4.5992]
[1757719192185,1.2529,4690.4,4690.3,4.5992]
[1757719192385,1.6509,4690.4,4690.3,4.0253]
[1757719193582,1.6509,4690.4,4689.7,3.2078]
[1757719193583,0.2521,4690.0,4689.7,3.2078]
[1757719193891,1.4239,4689.8,4689.7,4.0253]
[1757719196490,1.4239,4689.8,4689.7,3.2078]
[1757719197492,1.4239,4689.8,4689.7,3.62]
[1757719200494,1.4239,4689.8,4689.7,4.5943]
[1757719201389,1.4239,4689.8,4689.7,4.0084]
[1757719203085,1.0259,4689.8,4689.7,4.5943]
[1757719206896,1.2519,4689.8,4689.7,4.5943]
[1757719207394,0.226,4689.8,4689.7,4.5943]
[1757719207595,0.6045,4690.3,4690.2,0.7981]
[1757719207798,4.1068,4691.2,4690.2,3.2078]
[1757719207799,0.226,4690.4,4690.2,3.2078]
[1757719208005,0.226,4690.4,4690.3,1.384]
[1757719208006,1.2102,4690.4,4690.3,1.384]
[1757719208401,0.9842,4690.4,4690.3,1.384]
[1757719208602,0.226,4690.4,4690.3,1.384]
[1757719209708,0.8305,4690.4,4690.3,1.384]
[1757719210912,1.2102,4690.4,4690.3,1.384]
[1757719211913,0.9842,4690.4,4690.3,1.384]
[1757719212110,1.2102,4690.4,4690.3,1.384]
[1757719218720,1.6107,4690.4,4689.8,0.5859]
[1757719219018,1.6141,4690.0,4689.9,0.7981]
[1757719219218,1.8391,4690.0,4689.9,0.7981]
[1757719220420,1.8391,4690.0,4689.9,1.384]
[1757719220621,1.8391,4690.0,4689.9,0.7981]
[1757719228819,0.6131,4689.9,4689.7,3.2078]
[1757719229024,1.3822,4689.8,4689.7,3.6061]
[1757719229521,1.3822,4689.8,4689.7,3.9783]
[1757719233328,1.3822,4689.8,4689.7,4.5595]
[1757719235127,1.3822,4689.8,4689.7,3.6061]
[1757719235429,1.3822,4689.8,4689.7,3.2078]
[1757719239425,0.7691,4689.3,4689.2,3.2078]
[1757719239730,1.6072,4689.3,4689.2,3.2078]
[1757719244332,1.3822,4688.8,4688.7,3.6061]
[1757719252135,1.3822,4688.8,4688.7,3.2078]
[1757719252931,0.7691,4688.8,4688.1,3.2078]
[1757719253130,1.3635,4688.2,4688.1,4.5342]
[1757719253336,1.3635,4688.2,4688.1,3.9767]
[1757719253839,1.3635,4688.2,4688.1,4.5342]
[1757719256640,1.3635,4688.2,4688.1,3.9767]
[1757719257537,8.5713,4688.2,4687.4,0.5512]
[1757719257740,4.5713,4688.2,4687.4,0.5512]
[1757719257932,0.5638,4687.3,4687.1,0.5512]
[1757719258236,0.5638,4687.3,4687.0,3.2078]
[1757719258237,1.3498,4687.3,4687.2,0.4011]
[1757719258435,1.5748,4687.3,4687.2,0.4011]
[1757719258834,0.228,4687.0,4686.9,0.4011]
[1757719259236,1.014,4687.0,4686.9,0.4011]
[1757719259432,4.7856,4687.0,4686.9,0.4011]
[1757719259837,4.7856,4687.0,4686.5,0.5512]
[1757719260038,4.7856,4687.0,4686.1,0.5512]
[1757719260644,4.99898,4687.0,4686.1,0.5512]
[1757719260844,4.7856,4687.0,4686.1,0.5512]
[1757719264048,0.9589,4686.2,4686.1,1.347]
[1757719264244,1.1839,4686.2,4686.1,1.347]
[1757719265339,0.5638,4686.8,4686.2,0.5512]
[1757719265539,0.064,4686.9,4686.8,1.347]
[1757719265741,0.289,4686.9,4686.8,1.347]
[1757719267744,0.064,4686.9,4686.8,5.347]
[1757719268045,0.5638,4687.6,4686.8,5.347]
[1757719268046,0.225,4687.2,4687.1,1.0676]
[1757719268640,33.9268,4687.7,4687.6,0.7958]
[1757719268839,33.9268,4687.7,4687.6,1.0676]
[1757719268840,34.1518,4687.7,4687.6,1.0676]
[1757719269244,34.7156,4687.7,4687.6,1.0676]
[1757719271645,35.1107,4687.7,4687.6,1.0676]
[1757719271846,35.1107,4687.7,4687.6,0.7958]
[1757719272344,35.1107,4687.7,4687.6,1.0676]
[1757719272840,34.4906,4687.7,4687.6,1.0676]
[1757719273040,31.5078,4687.7,4687.6,1.0676]
[1757719273441,31.9029,4687.7,4687.6,1.0676]
[1757719273645,31.9029,4687.7,4687.6,0.7958]
[1757719273840,31.9029,4687.7,4687.6,1.0676]
[1757719274045,31.9029,4687.7,4687.6,0.7958]
[1757719274444,0.7918,4688.0,4687.7,0.2718]
[1757719274649,0.5638,4688.2,4688.1,1.0676]
[1757719274949,0.7888,4688.2,4688.1,1.0676]
[1757719275251,0.6277,4688.6,4688.2,0.2718]
[1757719275447,0.225,4688.3,4688.2,1.0676]
[1757719275641,0.7888,4688.3,4688.2,1.0676]
[1757719275944,1.1839,4688.3,4688.2,1.0676]
[1757719276345,0.228,4688.0,4687.8,3.2078]
[1757719276544,1.8028,4688.0,4687.9,0.4011]
[1757719277446,1.8028,4688.0,4687.9,0.7958]
[1757719278251,0.5638,4688.0,4687.9,1.0676]
[1757719278553,0.5638,4688.1,4688.0,1.0676]
[1757719281751,0.9589,4688.1,4688.0,1.0676]
[1757719282347,0.9589,4688.1,4688.0,0.7958]
[1757719284853,1.3498,4688.1,4688.0,0.7958]
[1757719285953,0.5638,4688.1,4688.0,1.0676]
[1757719286354,0.9589,4688.4,4688.3,1.0676]
[1757719286553,0.9589,4688.4,4688.3,4.0036]
[1757719287456,0.9589,4688.4,4688.3,4.284]
[1757719287860,0.9589,4688.4,4688.3,4.0036]
[1757719288156,0.9589,4688.4,4688.3,4.284]
[1757719289646,1.3338,4688.4,4688.3,3.6089]
[1757719289957,1.1921,4688.0,4687.9,1.0177]
[1757719290456,1.567,4688.0,4687.9,0.3895]
[1757719290758,0.5719,4687.9,4687.8,3.2078]
[1757719290954,1.3252,4687.9,4687.8,3.2078]
[1757719291948,0.2418,4687.5,4687.3,3.2078]
[1757719292154,1.1921,4687.5,4687.4,0.7927]
[1757719292658,1.567,4687.5,4687.4,0.7927]
[1757719293258,0.5719,4687.9,4687.4,1.0731]
[1757719293459,0.5719,4687.9,4687.8,1.0731]
[1757719294056,0.9503,4687.9,4687.8,0.7927]
[1757719294258,1.1886,4687.5,4687.4,0.3895]
[1757719294458,1.567,4687.5,4687.4,0.3895]
[1757719295063,0.9951,4687.5,4687.3,3.2078]
[1757719295363,1.3252,4687.4,4687.3,3.2078]
[1757719295560,1.3252,4687.4,4687.3,3.5973]
[1757719295761,1.3252,4687.4,4687.3,4.0005]
[1757719295961,1.3252,4687.4,4687.3,3.5973]
[1757719296162,1.3252,4687.4,4687.3,3.2078]
[1757719297461,1.3252,4687.4,4687.3,3.5973]
[1757719298064,1.3252,4687.4,4687.3,4.0005]
[1757719299764,1.3252,4687.4,4687.3,3.5973]
[1757719300466,1.3252,4687.4,4687.3,3.2078]
[1757719301368,1.3252,4687.4,4687.3,4.0005]
[1757719301665,0.2418,4688.0,4687.3,4.0005]
[1757719301666,0.5719,4687.9,4687.8,1.0731]
[1757719301866,0.5719,4687.9,4687.8,4.2809]
[1757719303660,0.9503,4687.9,4687.8,4.0005]
[1757719303871,1.3252,4687.9,4687.8,4.0005]
[1757719304170,1.3252,4687.9,4687.8,3.2078]
[1757719304772,0.2418,4687.5,4687.3,3.2078]
[1757719304961,1.3252,4687.4,4687.3,3.2078]
[1757719305467,1.3252,4687.4,4687.3,3.5973]
[1757719305668,1.3252,4687.4,4687.3,3.2078]
[1757719306072,1.5502,4687.4,4687.3,3.2078]
[1757719306769,1.3868,4686.9,4686.8,3.6066]
[1757719306964,1.3868,4686.9,4686.8,4.0067]
[1757719307669,1.0032,4686.9,4686.8,4.0067]
[1757719308971,1.0032,4686.9,4686.8,3.2078]
[1757719308972,1.3868,4686.9,4686.8,3.2078]
[1757719310972,1.3868,4686.9,4686.3,3.2078]
[1757719311164,0.6049,4686.8,4686.3,3.2078]
[1757719311369,1.3868,4686.8,4686.7,0.4001]
[1757719312268,1.3868,4686.4,4686.3,3.2078]
[1757719312469,1.3868,4685.9,4685.8,3.2078]
[1757719313267,1.3868,4685.9,4685.8,3.6079]
[1757719313474,1.3868,4685.9,4685.8,4.0067]
[1757719313974,1.0032,4685.9,4685.8,4.0067]
[1757719314169,0.6049,4685.9,4685.8,4.2736]
[1757719314475,0.6049,4686.2,4686.1,1.0658]
[1757719314670,1.0032,4686.2,4686.1,0.7989]
[1757719314870,1.0032,4686.2,4686.1,1.0658]
[1757719315375,0.6049,4686.2,4686.1,1.0658]
[1757719315670,0.8299,4686.4,4686.1,0.7989]
[1757719315872,0.6049,4686.3,4686.2,1.0658]
[1757719316373,1.0032,4686.3,4686.2,1.0658]
[1757719316569,1.0032,4686.3,4686.2,0.7989]
[1757719319471,1.3868,4686.3,4686.2,0.7989]
[1757719319771,0.232,4686.0,4685.8,3.2078]
[1757719319969,1.1624,4686.0,4685.9,0.7899]
[1757719322272,1.1624,4686.0,4685.9,1.05]
[1757719322472,0.2389,4686.5,4686.3,0.7899]
[1757719322473,0.5472,4686.4,4686.3,0.7899]
[1757719322682,0.9304,4686.9,4686.8,0.3958]
[1757719322880,0.5472,4686.9,4686.8,4.2578]
[1757719323376,0.9304,4686.9,4686.8,4.2578]
[1757719323981,30.724,4687.4,4686.8,4.2578]
[1757719324179,30.948,4687.4,4686.8,3.9977]
[1757719324975,0.232,4687.0,4686.8,3.9977]
[1757719325280,0.5472,4686.9,4686.8,3.9977]
[1757719325472,0.5472,4686.9,4686.8,4.2578]
[1757719326377,0.232,4688.0,4686.9,0.2601]
[1757719326576,0.9304,4687.6,4687.5,3.9977]
[1757719327282,1.3021,4687.6,4687.5,3.6036]
[1757719327477,1.3021,4687.6,4687.5,3.2078]
[1757719328181,1.3021,4687.6,4687.5,3.6036]
[1757719330479,1.3021,4687.6,4687.5,3.2078]
[1757719341086,1.3021,4686.8,4686.7,3.9977]
[1757719341285,0.9304,4686.8,4686.7,4.2578]
[1757719343294,0.9304,4686.8,4686.7,3.2078]
[1757719343295,1.3021,4686.8,4686.7,3.2078]
[1757719343692,0.9869,4686.5,4686.4,0.3958]
[1757719343892,1.5341,4686.5,4686.4,0.3958]
[1757719344089,1.2109,4686.5,4686.1,3.2078]
[1757719344289,1.3021,4686.2,4686.1,3.6036]
[1757719344793,1.3021,4686.2,4686.1,3.2078]
[1757719350400,1.3021,4686.2,4685.3,0.2601]
[1757719350401,4.5099,4686.2,4685.3,0.2601]
[1757719351196,1.5561,4685.5,4685.4,0.7326]
[1757719353599,0.5663,4685.8,4685.7,0.9729]
[1757719353900,0.7903,4685.8,4685.7,0.9729]
[1757719355197,1.5435,4685.8,4685.7,0.7326]
[1757719357603,1.3195,4685.8,4685.7,0.7326]
[1757719357805,1.5435,4685.8,4685.7,0.7326]
[1757719359199,1.5435,4685.8,4685.1,3.2078]
[1757719359504,1.5561,4685.5,4685.4,0.3633]
[1757719359703,1.5561,4685.5,4685.1,3.2078]
[1757719359704,0.7532,4685.2,4685.1,3.2078]
[1757719359903,1.5435,4685.2,4684.3,3.4481]
[1757719360103,0.9772,4685.2,4684.3,3.4481]
[1757719360302,0.224,4685.2,4684.3,3.4481]
[1757719360501,0.9898,4685.0,4684.9,0.3633]
[1757719360704,1.5561,4685.0,4684.9,0.3633]
[1757719363412,0.8029,4685.0,4684.9,0.9729]
[1757719363712,0.5663,4685.0,4684.9,0.9729]
[1757719363909,0.2366,4685.5,4684.9,0.7326]
[1757719364213,0.7903,4685.4,4685.3,0.7326]
[1757719364512,0.7903,4685.4,4685.3,0.9729]
[1757719364908,0.7903,4685.4,4684.8,3.2078]
[1757719364909,0.9372,4685.9,4685.8,0.7326]
[1757719365303,1.1612,4685.9,4685.8,0.7326]
[1757719365504,1.5435,4685.9,4685.8,0.7326]
[1757719366208,1.5435,4685.9,4685.8,0.3633]
[1757719366612,0.5714,4685.5,4685.4,0.7257]
[1757719366904,1.343,4685.5,4685.4,0.7257]
[1757719367110,1.119,4685.5,4685.4,0.7257]
[1757719367306,1.343,4685.5,4685.4,0.7257]
[1757719369112,1.119,4685.5,4685.4,0.7257]
[1757719369419,1.343,4685.5,4685.4,0.7257]
[1757719370616,1.343,4685.5,4685.4,0.9535]
[1757719370818,1.343,4685.5,4685.4,0.7257]
[1757719372523,0.5476,4685.9,4685.5,0.2278]
[1757719372818,0.064,4686.0,4685.9,0.9535]
[1757719373213,0.6116,4686.0,4685.9,0.9535]
[1757719373618,1.183,4686.0,4685.9,0.7257]
[1757719375217,0.6116,4686.0,4685.9,0.9535]
[1757719375417,0.064,4686.0,4685.9,4.9535]
[1757719375622,0.5476,4686.8,4686.3,0.688]
[1757719375819,0.7716,4686.8,4686.7,0.5242]
[1757719376012,1.1317,4686.8,4686.7,0.5242]
[1757719376423,1.5173,4686.8,4686.7,0.5242]
[1757719377811,0.224,4686.8,4686.7,0.6814]
[1757719378014,0.5715,4686.8,4686.7,0.6814]
[1757719379122,0.9409,4686.8,4686.7,0.5242]
[1757719380725,0.9409,4687.4,4687.3,0.503]
[1757719380926,0.9409,4687.4,4687.3,3.7108]
[1757719382121,0.5715,4687.9,4687.4,0.1572]
[1757719382424,0.9409,4687.9,4687.8,0.503]
[1757719382926,0.5715,4687.9,4687.8,0.6602]
[1757719383123,0.5715,4687.9,4687.8,0.503]
[1757719383124,0.9409,4687.9,4687.8,0.503]
[1757719384426,1.295,4687.9,4687.8,3.7108]
[1757719385222,0.9409,4687.9,4687.8,3.7108]
[1757719387326,0.5715,4687.9,4687.8,3.868]
[1757719388330,0.9409,4687.9,4687.8,3.7108]
[1757719388829,1.295,4687.9,4687.8,3.7108]
[1757719391022,0.5715,4687.9,4687.8,3.868]
[1757719391423,0.9409,4687.9,4687.8,3.7108]
[1757719393332,0.5715,4687.9,4687.8,3.868]
[1757719393631,0.899,4688.4,4688.1,0.6602]
[1757719393830,0.9409,4688.2,4688.1,0.503]
[1757719394535,0.5715,4688.2,4688.1,0.6602]
[1757719394733,0.9409,4688.2,4688.1,0.503]
[1757719394930,1.295,4688.2,4688.1,0.503]
[1757719396633,1.295,4688.2,4688.1,0.2515]
[1757719398633,0.899,4688.5,4688.4,0.6602]
[1757719398828,0.899,4688.5,4688.4,4.091]
[1757719399029,0.2319,4689.0,4688.4,4.091]
[1757719399227,0.2319,4689.0,4688.9,3.2078]
[1757719399433,0.2319,4689.0,4688.9,3.4308]
[1757719399633,0.8034,4689.0,4688.9,3.4308]
[1757719400134,1.1728,4689.0,4688.9,3.4308]
[1757719406838,0.8034,4689.0,4688.9,3.4308]
[1757719407040,1.1728,4689.0,4688.9,3.4308]
[1757719407847,1.1728,4689.0,4688.9,3.2078]
[1757719408142,1.1728,4689.0,4688.9,3.4308]
[1757719408740,1.1728,4689.0,4688.9,3.2078]
[1757719408940,1.5188,4689.0,4688.9,3.4308]
[1757719409136,1.5188,4689.0,4688.9,3.2078]
[1757719417349,2.02329307,4689.0,4688.9,3.2078]
[1757719421250,1.5188,4689.0,4688.9,3.2078]
[1757719423055,1.1626,4689.0,4688.9,3.2078]
[1757719423256,1.5086,4689.0,4688.9,3.2078]
[1757719423953,0.8034,4689.0,4688.9,3.2078]
[1757719425358,0.8034,4689.0,4688.9,3.4308]
[1757719430862,0.7622,4689.0,4688.9,7.4308]
[1757719431063,0.2095,4689.0,4688.9,7.4308]
[1757719431263,0.5527,4689.3,4688.9,7.4308]
[1757719431464,0.2319,4689.5,4688.9,3.4308]
[1757719431662,0.7846,4689.5,4689.4,3.2078]
[1757719431861,0.7846,4689.5,4689.4,3.4308]
[1757719432162,0.7846,4689.5,4689.4,7.4308]
[1757719435067,0.5527,4689.8,4689.4,7.4308]
[1757719435262,0.5527,4689.8,4689.4,3.4308]
[1757719435465,0.2095,4689.5,4689.4,3.4308]
[1757719435669,0.7622,4689.5,4689.4,3.4308]
[1757719437167,0.7622,4689.5,4689.4,3.2078]
[1757719437369,0.7622,4689.5,4689.4,3.4298]
[1757719439269,0.7795,4689.5,4689.4,7.4298]
[1757719440572,0.7795,4689.5,4689.4,3.4298]
[1757719441079,0.2319,4690.0,4689.4,7.4298]
[1757719441276,0.2147,4691.5,4689.9,3.2078]
[1757719441570,0.2147,4691.5,4691.4,3.2078]
[1757719441762,0.2147,4691.5,4691.4,3.4298]
[1757719441961,0.5718,4691.5,4691.4,3.2078]
[1757719442179,0.5718,4691.5,4691.4,3.4298]
[1757719442673,0.2147,4691.5,4691.4,3.4298]
[1757719442866,0.2147,4691.5,4691.4,3.2078]
[1757719443068,0.5718,4691.5,4691.4,3.4298]
[1757719443268,1.1366,4691.5,4691.4,3.4298]
[1757719443674,0.7795,4691.5,4691.4,3.4298]
[1757719444468,1.1366,4691.5,4691.4,3.4298]
[1757719444874,1.489,4691.5,4691.4,3.4298]
[1757719446068,1.489,4691.5,4691.4,3.2078]
[1757719448970,5.489,4691.5,4691.4,3.2078]
[1757719449270,5.489,4691.5,4691.1,0.6567]
[1757719449472,1.489,4691.5,4691.1,0.6567]
[1757719450268,0.7795,4691.5,4691.4,0.7146]
[1757719450470,0.5648,4692.2,4691.9,0.7146]
[1757719450674,0.5648,4692.2,4692.1,1.2502]
[1757719451779,0.9219,4692.2,4692.1,1.2502]
[1757719452272,1.489,4693.0,4692.9,0.7146]
[1757719453079,1.489,4693.0,4692.9,1.2502]
[1757719453675,0.9219,4693.0,4692.9,1.2502]
[1757719454079,0.5648,4693.0,4692.9,1.2502]
[1757719454380,0.9219,4693.0,4692.9,1.2502]
[1757719454582,0.5648,4693.4,4692.9,1.2502]
[1757719454777,0.3571,4693.2,4693.1,3.2078]
[1757719454983,0.9219,4693.2,4693.1,4.458]